Workbook

Sheet Income statement
A2: Condensed Income Statement
A3: NOK million | B3: Q1 2013 | C3: Q2 2013 | D3: YTD Q2 2013 | E3: Q3 2013 | F3: YTD Q3 2013 | G3: Q4 2013 | H3: YTD Q4 2013 | I3: Q1 2014 | J3: Q2 2014 | K3: YTD Q2 2014 | L3: Q3 2014 | M3: YTD Q3 2014 | N3: Q4 2014 | O3: YTD Q4 2014 | P3: Q1 2015 | Q3: Q2 2015 | R3: YTD Q2 2015 | S3: Q3 2015 | T3: YTD Q3 2015
A4: Operating revenues | B4: 5998 | C4: 6653 | D4: 12651 | E4: 7239 | F4: 19890 | G4: 8125 | H4: 28015 | I4: 7013 | J4: 7196 | K4: 14209 | L4: 7271 | M4: 21480 | N4: 8119 | O4: 29599 | P4: 7541 | Q4: 7705 | R4: 15246 | S4: 8381 | T4: 23627
A5: Operating expenses | B5: -5249 | C5: -5829 | D5: -11078 | E5: -6148 | F5: -17226 | G5: -6947 | H5: -24173 | I5: -6109 | J5: -6299 | K5: -12408 | L5: -6156 | M5: -18564 | N5: -6863 | O5: -25427 | P5: -6578 | Q5: -6643 | R5: -13221 | S5: -7123 | T5: -20344
A6: Depreciation and write-down property, plant and equipment | B6: -194 | C6: -228 | D6: -422 | E6: -242 | F6: -664 | G6: -220 | H6: -884 | I6: -241 | J6: -223 | K6: -464 | L6: -230 | M6: -694 | N6: -241 | O6: -935 | P6: -234 | Q6: -268 | R6: -502 | S6: -260 | T6: -762
A7: Amortisation intangible assets | B7: -6 | C7: -4 | D7: -10 | E7: -4 | F7: -14 | G7: -7 | H7: -21 | I7: -4 | J7: -5 | K7: -9 | L7: -6 | M7: -15 | N7: -8 | O7: -23 | P7: -4 | Q7: -5 | R7: -9 | S7: -5 | T7: -14
A8: EBIT (adj.) | B8: =SUM(B4:B7) -> 549 | C8: 592 | D8: 1141 | E8: 845 | F8: 1986 | G8: 951 | H8: 2937 | I8: 659 | J8: =SUM(J4:J7) -> 669 | K8: 1328 | L8: 879 | M8: 2207 | N8: 1007 | O8: 3214 | P8: 725 | Q8: 789 | R8: 1514 | S8: 993 | T8: 2507
A9: Other income and expenses | B9: -23 | C9: -129 | D9: -152 | E9: -193 | F9: -345 | G9: -148 | H9: -493 | I9: -32 | J9: 78 | K9: 46 | L9: -44 | M9: 2 | N9: -102 | O9: -100 | P9: -117 | Q9: -55 | R9: -172 | S9: -96 | T9: -268
A10: Operating profit | B10: =SUM(B8:B9) -> 526 | C10: 463 | D10: 989 | E10: 652 | F10: 1641 | G10: 803 | H10: 2444 | I10: =SUM(I8:I9) -> 627 | J10: =SUM(J8:J9) -> 747 | K10: 1374 | L10: 835 | M10: 2209 | N10: 905 | O10: 3114 | P10: 608 | Q10: 734 | R10: 1342 | S10: 897 | T10: 2239
A11: Profit from associates and joint ventures | B11: 93 | C11: 130 | D11: 223 | E11: 76 | F11: 299 | G11: -302 | H11: -3 | I11: 55 | J11: 192 | K11: 247 | L11: 126 | M11: 373 | N11: -252 | O11: 121 | P11: 238 | Q11: 545 | R11: 783 | S11: 239 | T11: 1022
A12: Interest, net | B12: -62 | C12: =D12-B12 -> -98 | D12: -160 | E12: =F12-D12 -> -96 | F12: -256 | G12: =H12-F12 -> -86 | H12: -342 | I12: -86 | J12: =K12-I12 -> -84 | K12: -170 | L12: =M12-K12 -> -68 | M12: -238 | N12: =O12-M12 -> -125 | O12: -363 | P12: -63 | Q12: -18 | R12: -81 | S12: -78 | T12: -159
A13: Other financial items, net | B13: 323 | C13: =D13-B13 -> 444 | D13: 767 | E13: =F13-D13 -> 31 | F13: 798 | G13: =H13-F13 -> -39 | H13: 759 | I13: -17 | J13: =K13-I13 -> 26 | K13: 9 | L13: =M13-K13 -> 14 | M13: 23 | N13: =O13-M13 -> -23 | O13: 0 | P13: 12 | Q13: 19 | R13: 31 | S13: 11 | T13: 42
A14: Profit before taxes | B14: =SUM(B10:B13) -> 880 | C14: 939 | D14: 1819 | E14: 663 | F14: 2482 | G14: 376 | H14: 2858 | I14: 579 | J14: 881 | K14: 1460 | L14: 907 | M14: 2367 | N14: 505 | O14: 2872 | P14: 795 | Q14: 1280 | R14: 2075 | S14: 1069 | T14: 3144
A15: Taxes | B15: -136 | C15: -104 | D15: -240 | E15: -164 | F15: -404 | G15: -160 | H15: -564 | I15: -123 | J15: -175 | K15: -298 | L15: -207 | M15: -505 | N15: -183 | O15: -688 | P15: -155 | Q15: -155 | R15: -310 | S15: -240 | T15: -550
A16: Profit for the period for continued operations | B16: =SUM(B14:B15) -> 744 | C16: 835 | D16: 1579 | E16: 499 | F16: 2078 | G16: 216 | H16: 2294 | I16: =SUM(I14:I15) -> 456 | J16: =SUM(J14:J15) -> 706 | K16: 1162 | L16: 700 | M16: 1862 | N16: 322 | O16: 2184 | P16: 640 | Q16: 1125 | R16: 1765 | S16: 829 | T16: 2594
A17: Gains/profit/loss discontinued operations | B17: -60 | C17: -1560 | D17: -1620 | E17: -48 | F17: -1668 | G17: 121 | H17: -1547 | I17: 33 | J17: 24 | K17: 57 | L17: -155 | M17: -98 | N17: -387 | O17: -485 | P17: 0 | Q17: 0 | R17: 0 | S17: 0 | T17: 0
A18: Profit/loss for the period | B18: =SUM(B16:B17) -> 684 | C18: -725 | D18: -41 | E18: 451 | F18: 410 | G18: 337 | H18: 747 | I18: =SUM(I16:I17) -> 489 | J18: =SUM(J16:J17) -> 730 | K18: 1219 | L18: 545 | M18: 1764 | N18: -65 | O18: 1699 | P18: 640 | Q18: 1125 | R18: 1765 | S18: 829 | T18: 2594
A19: Profit/loss attributable to non-controlling interests | B19: 14 | C19: 10 | D19: 24 | E19: 16 | F19: 40 | G19: 17 | H19: 57 | I19: 13 | J19: 3 | K19: 16 | L19: 28 | M19: 44 | N19: -4 | O19: 40 | P19: 11 | Q19: 16 | R19: 27 | S19: 19 | T19: 46
A20: Profit/loss attributable to owners of the parent | B20: =B18-B19 -> 670 | C20: -735 | D20: -65 | E20: 435 | F20: 370 | G20: 320 | H20: 690 | I20: =I18-I19 -> 476 | J20: =J18-J19 -> 727 | K20: 1203 | L20: 517 | M20: 1720 | N20: -61 | O20: 1659 | P20: 629 | Q20: 1109 | R20: 1738 | S20: 810 | T20: 2548
A23: Operating revenues
A24: NOK million | B24: Q1 2013 | C24: Q2 2013 | D24: YTD Q2 2013 | E24: Q3 2013 | F24: YTD Q3 2013 | G24: Q4 2013 | H24: YTD Q4 2013 | I24: Q1 2014 | J24: Q2 2014 | K24: YTD Q2 2014 | L24: Q3 2014 | M24: YTD Q3 2014 | N24: Q4 2014 | O24: YTD Q4 2014 | P24: Q1 2015 | Q24: Q2 2015 | R24: YTD Q2 2015 | S24: Q3 2015 | T24: YTD Q3 2015
A25: Orkla Group | B25: 5998 | C25: 6653 | D25: 12651 | E25: 7239 | F25: 19890 | G25: 8125 | H25: 28015 | I25: 7013 | J25: 7196 | K25: 14209 | L25: 7271 | M25: 21480 | N25: =N26+N32+N35 -> 8119 | O25: =O26+O32+O35 -> 29599 | P25: 7541 | Q25: 7705 | R25: 15246 | S25: 8381 | T25: 23627
A26: Branded Consumer Goods | B26: 5709 | C26: 6309 | D26: 12018 | E26: 6846 | F26: 18864 | G26: 7738 | H26: 26602 | I26: 6767 | J26: 6979 | K26: 13746 | L26: 6984 | M26: 20730 | N26: =SUM(N27:N31) -> 7854 | O26: =SUM(O27:O31) -> 28584 | P26: 7220 | Q26: 7404 | R26: 14624 | S26: 8064 | T26: 22688
A27: Orkla Foods | B27: 2094 | C27: 2698 | D27: 4792 | E27: 2997 | F27: 7789 | G27: 3321 | H27: 11110 | I27: 2920 | J27: 3041 | K27: 5961 | L27: 2900 | M27: 8861 | N27: 3371 | O27: 12232 | P27: 3045 | Q27: 3122 | R27: 6167 | S27: 3261 | T27: 9428
A28: Orkla Confectionery & Snacks | B28: 1100 | C28: 1125 | D28: 2225 | E28: 1180 | F28: 3405 | G28: 1463 | H28: 4868 | I28: 1141 | J28: 1170 | K28: 2311 | L28: 1228 | M28: 3539 | N28: 1448 | O28: 4987 | P28: 1199 | Q28: 1344 | R28: 2543 | S28: 1452 | T28: 3995
A29: Orkla Home & Personal | B29: 1211 | C29: 1097 | D29: 2308 | E29: 1192 | F29: 3500 | G29: 1270 | H29: 4770 | I29: 1280 | J29: 1176 | K29: 2456 | L29: 1254 | M29: 3710 | N29: 1250 | O29: 4960 | P29: 1327 | Q29: 1157 | R29: 2484 | S29: 1410 | T29: 3894
A30: Orkla Food Ingredients | B30: 1333 | C30: 1415 | D30: 2748 | E30: 1524 | F30: 4272 | G30: 1726 | H30: 5998 | I30: 1451 | J30: 1624 | K30: 3075 | L30: 1638 | M30: 4713 | N30: 1821 | O30: 6534 | P30: 1680 | Q30: 1814 | R30: 3494 | S30: 1989 | T30: 5483
A31: Eliminations Branded Consumer Goods | B31: -29 | C31: -26 | D31: -55 | E31: -47 | F31: -102 | G31: -42 | H31: -144 | I31: -25 | J31: -32 | K31: -57 | L31: -36 | M31: -93 | N31: -36 | O31: -129 | P31: -31 | Q31: -33 | R31: -64 | S31: -48 | T31: -112
A32: Orkla Investments | B32: 278 | C32: 337 | D32: 615 | E32: 369 | F32: 984 | G32: 380 | H32: 1364 | I32: 235 | J32: 211 | K32: 446 | L32: 279 | M32: 725 | N32: =SUM(N33:N34) -> 247 | O32: =SUM(O33:O34) -> 972 | P32: 315 | Q32: 286 | R32: 601 | S32: 313 | T32: 914
A33: Hydro Power | B33: 127 | C33: 204 | D33: 331 | E33: 178 | F33: 509 | G33: 225 | H33: 734 | I33: 191 | J33: 173 | K33: 364 | L33: 174 | M33: 538 | N33: 203 | O33: 741 | P33: 183 | Q33: 159 | R33: 342 | S33: 156 | T33: 498
A34: Financial Investments | B34: 151 | C34: 133 | D34: 284 | E34: 191 | F34: 475 | G34: 155 | H34: 630 | I34: 44 | J34: 38 | K34: 82 | L34: 105 | M34: 187 | N34: 44 | O34: 231 | P34: 132 | Q34: 127 | R34: 259 | S34: 157 | T34: 416
A35: HQ/Other business/Eliminations | B35: 11 | C35: 7 | D35: 18 | E35: 24 | F35: 42 | G35: 7 | H35: 49 | I35: 11 | J35: 6 | K35: 17 | L35: 8 | M35: 25 | N35: 18 | O35: 43 | P35: 6 | Q35: 15 | R35: 21 | S35: 4 | T35: 25
A38: Operating profit - EBIT (adj.)
A39: NOK million | B39: Q1 2013 | C39: Q2 2013 | D39: YTD Q2 2013 | E39: Q3 2013 | F39: YTD Q3 2013 | G39: Q4 2013 | H39: YTD Q4 2013 | I39: Q1 2014 | J39: Q2 2014 | K39: YTD Q2 2014 | L39: Q3 2014 | M39: YTD Q3 2014 | N39: Q4 2014 | O39: YTD Q4 2014 | P39: Q1 2015 | Q39: Q2 2015 | R39: YTD Q2 2015 | S39: Q3 2015 | T39: YTD Q3 2015
A40: Orkla Group | B40: =B41+B46+B49 -> 549 | C40: 592 | D40: 1141 | E40: 845 | F40: 1986 | G40: 951 | H40: 2937 | I40: =I41+I46+I49 -> 659 | J40: =J41+J46+J49 -> 669 | K40: 1328 | L40: 879 | M40: 2207 | N40: 1007 | O40: 3214 | P40: 725 | Q40: 789 | R40: 1514 | S40: 993 | T40: 2507
A41: Branded Consumer Goods | B41: =SUM(B42:B45) -> 617 | C41: 629 | D41: 1246 | E41: 892 | F41: 2138 | G41: 954 | H41: 3092 | I41: =SUM(I42:I45) -> 695 | J41: =SUM(J42:J45) -> 741 | K41: 1436 | L41: 920 | M41: 2356 | N41: 1022 | O41: 3378 | P41: 769 | Q41: 820 | R41: 1589 | S41: 1055 | T41: 2644
A42: Orkla Foods | B42: 228 | C42: 267 | D42: 495 | E42: 380 | F42: 875 | G42: 436 | H42: 1311 | I42: 309 | J42: 356 | K42: 665 | L42: 357 | M42: 1022 | N42: 466 | O42: 1488 | P42: 322 | Q42: 389 | R42: 711 | S42: 429 | T42: 1140
A43: Orkla Confectionery & Snacks | B43: 144 | C43: 123 | D43: 267 | E43: 189 | F43: 456 | G43: 234 | H43: 690 | I43: 118 | J43: 113 | K43: 231 | L43: 217 | M43: 448 | N43: 245 | O43: 693 | P43: 159 | Q43: 132 | R43: 291 | S43: 238 | T43: 529
A44: Orkla Home & Personal | B44: 213 | C44: 165 | D44: 378 | E44: 249 | F44: 627 | G44: 191 | H44: 818 | I44: 229 | J44: 176 | K44: 405 | L44: 256 | M44: 661 | N44: 191 | O44: 852 | P44: 230 | Q44: 178 | R44: 408 | S44: 269 | T44: 677
A45: Orkla Food Ingredients | B45: 32 | C45: 74 | D45: 106 | E45: 74 | F45: 180 | G45: 93 | H45: 273 | I45: 39 | J45: 96 | K45: 135 | L45: 90 | M45: 225 | N45: 120 | O45: 345 | P45: 58 | Q45: 121 | R45: 179 | S45: 119 | T45: 298
A46: Orkla Investments | B46: =SUM(B47:B48) -> 5 | C46: 74 | D46: 79 | E46: 43 | F46: 122 | G46: 88 | H46: 210 | I46: =SUM(I47:I48) -> 47 | J46: =SUM(J47:J48) -> 39 | K46: 86 | L46: 41 | M46: 127 | N46: 53 | O46: 180 | P46: 59 | Q46: 84 | R46: 143 | S46: 36 | T46: 179
A47: Hydro Power | B47: -3 | C47: 77 | D47: 74 | E47: 42 | F47: 116 | G47: 97 | H47: 213 | I47: 58 | J47: 39 | K47: 97 | L47: 46 | M47: 143 | N47: 73 | O47: 216 | P47: 56 | Q47: 27 | R47: 83 | S47: 22 | T47: 105
A48: Financial Investments | B48: 8 | C48: -3 | D48: 5 | E48: 1 | F48: 6 | G48: -9 | H48: -3 | I48: -11 | J48: 0 | K48: -11 | L48: -5 | M48: -16 | N48: -20 | O48: -36 | P48: 3 | Q48: 57 | R48: 60 | S48: 14 | T48: 74
A49: HQ/Other business | B49: -73 | C49: -111 | D49: -184 | E49: -90 | F49: -274 | G49: -91 | H49: -365 | I49: -83 | J49: -111 | K49: -194 | L49: -82 | M49: -276 | N49: -68 | O49: -344 | P49: -103 | Q49: -115 | R49: -218 | S49: -98 | T49: -316

Sheet Cash flow
B3: Cash Flow Statement Orkla Group
C5: 1.1-30.9 | D5: 1.1-30.9 | E5: 1.7-30.9 | F5: 1.7-30.9
B6: Amounts in NOK million | C6: 2015 | D6: 2014 | E6: 2015 | F6: 2014
B8: Operating profit | C8: 2165 | D8: 2257 | E8: 883 | F8: 841
B9: Amortisation, depreciation and write-downs | C9: 841 | D9: 691 | E9: 295 | F9: 222
B10: Change in net working capital | C10: -283 | D10: -918 | E10: -211 | F10: -290
B11: Cash flow from operating act. bef. net replacement exp. | C11: 2723 | D11: 2030 | E11: 967 | F11: 773
B12: Net replacement expenditures | C12: -659 | D12: -587 | E12: -255 | F12: -196
B13: Cash flow from operations¹ | C13: 2064 | D13: 1443 | E13: 712 | F13: 577
B14: Cash flow from operations, Financial Investments | C14: 127 | D14: 45 | E14: 92 | F14: -8
B15: Financial items paid | C15: -197 | D15: -230 | E15: -83 | F15: -64
B16: Taxes paid | C16: -668 | D16: -354 | E16: -87 | F16: -80
B17: Dividends received | C17: 282 | D17: 267 | E17: 126 | F17: 122
B18: Other payments and discontinued operations | C18: 155 | D18: 422 | E18: 20 | F18: -111
B19: Cash flow before capital transactions | C19: 1763 | D19: 1593 | E19: 780 | F19: 436
B20: Dividends paid | C20: -2554 | D20: -2545 | E20: 0 | F20: -1
B21: Net sale/purchase of Orkla shares | C21: -112 | D21: 200 | E21: -117 | F21: 68
B22: Cash flow before expansion | C22: -903 | D22: -752 | E22: 663 | F22: 503
B23: Expansion investments | C23: -236 | D23: -65 | E23: -77 | F23: -31
B24: Sold companies/share of companies | C24: 1081 | D24: 549 | E24: 4 | F24: 185
B25: Acquired companies/share of companies | C25: -3033 | D25: -50 | E25: -1843 | F25: -36
B26: Net purchases/sales shares and financial assets | C26: 225 | D26: 204 | E26: 76 | F26: 80
B27: Net cash flow | C27: -2866 | D27: -114 | E27: -1177 | F27: 701
B28: Currency translations net interest-bearing liabilities | C28: -401 | D28: 281 | E28: -398 | F28: 220
B29: Change in net interest-bearing liabilities | C29: 3267 | D29: -167 | E29: 1575 | F29: -921
B30: Net interest-bearing liabilities | C30: 8928 | D30: 8329
B32: ¹ Excluding Financial Investments

Sheet Balance sheet
B3: Group Balance Sheet
C4: 2015-09-30 | D4: 2015-12-31
B5: Amounts in NOK million | C5: 2015 | D5: 2014
B7: Assets:
B8: Intangible assets | C8: 17450 | D8: 14598
B9: Property, plant and equipment | C9: 10256 | D9: 9484
B10: Investments in associates and joint ventures and other financial assets | C10: 12587 | D10: 13026
B11: Non-current assets | C11: 40293 | D11: 37108
B12: Assets held for sale | C12: 22 | D12: 22
B13: Inventories | C13: 4824 | D13: 3873
B14: Inventory of development property | C14: 188 | D14: 200
B15: Trade receivables | C15: 5242 | D15: 4413
B16: Other receivables | C16: 586 | D16: 1147
B17: Shares and financial assets | C17: 1192 | D17: 734
B18: Cash and cash equivalents | C18: 1105 | D18: 2615
B19: Current assets | C19: 13159 | D19: 13004
B20: Total assets | C20: 53452 | D20: 50112
B21: Equity and debt:
B22: Paid-in equity | C22: 1992 | D22: 1993
B23: Earned equity | C23: 29709 | D23: 29066
B24: Non-controlling interests | C24: 411 | D24: 245
B25: Equity | C25: 32112 | D25: 31304
B26: Provisions and other non-current liabilities | C26: 4083 | D26: 3699
B27: Non-current interest-bearing liabilities | C27: 10310 | D27: 8510
B28: Current interest-bearing liabilities | C28: 370 | D28: 598
B29: Trade payables | C29: 3711 | D29: 3221
B30: Other current liabilities | C30: 2866 | D30: 2780
B31: Equity and liabilities | C31: 53452 | D31: 50112
B33: Equity ratio (%): | C33: 0.601 | D33: 0.625
